[Event "Live Chess"]
[Site "Chess.com"]
[Date "2023.09.16"]
[Round "-"]
[White "abaakate"]
[Black "vitinho_lawliet"]
[Result "1-0"]
[WhiteElo "1916"]
[BlackElo "934"]
[TimeControl "900+5"]
[EndTime "7:24:40 PDT"]
[Termination "abaakate venceu por xeque-mate"]

1. d4 {[%clk 0:15:04.3]} 1... d5 {[%clk 0:14:58.8]} 2. c4 {[%clk 0:15:08]} 2...
e6 {[%clk 0:14:55.3]} 3. Nf3 {[%clk 0:15:11.4]} 3... Nf6 {[%clk 0:14:56.9]} 4.
g3 {[%clk 0:15:13.9]} 4... Nc6 {[%clk 0:14:53.7]} 5. Bg2 {[%clk 0:15:15.9]} 5...
e5 {[%clk 0:14:57.1]} 6. dxe5 {[%clk 0:15:17.5]} 6... Ng4 {[%clk 0:15:00.5]} 7.
cxd5 {[%clk 0:15:18.1]} 7... Ncxe5 {[%clk 0:14:57.9]} 8. Qa4+ {[%clk 0:15:05.3]}
8... Bd7 {[%clk 0:14:56.7]} 9. Qe4 {[%clk 0:15:07.2]} 9... Qe7 {[%clk
0:14:52.1]} 10. Nxe5 {[%clk 0:14:48.2]} 10... Nxe5 {[%clk 0:14:54.4]} 11. Bf4
{[%clk 0:14:46.6]} 11... f5 {[%clk 0:14:55.9]} 12. Qxe5 {[%clk 0:14:49]} 12...
Qxe5 {[%clk 0:14:58.3]} 13. Bxe5 {[%clk 0:14:53.9]} 13... O-O-O {[%clk
0:14:56.1]} 14. Nc3 {[%clk 0:14:54.9]} 14... Re8 {[%clk 0:14:59.8]} 15. Bf4
{[%clk 0:14:52]} 15... Bb4 {[%clk 0:14:57.1]} 16. O-O {[%clk 0:14:53.9]} 16...
Bxc3 {[%clk 0:14:53.5]} 17. bxc3 {[%clk 0:14:54.7]} 17... Rxe2 {[%clk
0:14:56.5]} 18. Rfe1 {[%clk 0:14:58.9]} 18... Rhe8 {[%clk 0:14:56.3]} 19. Be3
{[%clk 0:14:57.5]} 19... Rc2 {[%clk 0:14:53.6]} 20. Bd4 {[%clk 0:14:47.6]} 20...
Rce2 {[%clk 0:14:35.9]} 21. Rxe2 {[%clk 0:14:50.7]} 21... Rxe2 {[%clk
0:14:39.3]} 22. Bxg7 {[%clk 0:14:53.6]} 22... Bb5 {[%clk 0:14:40.7]} 23. a4
{[%clk 0:14:49.1]} 23... Bc4 {[%clk 0:14:42.4]} 24. Bd4 {[%clk 0:14:48.9]} 24...
b6 {[%clk 0:14:42.3]} 25. a5 {[%clk 0:14:49.8]} 25... b5 {[%clk 0:14:43.4]} 26.
Bxa7 {[%clk 0:14:52.8]} 26... Rc2 {[%clk 0:14:39.7]} 27. Bd4 {[%clk 0:14:52.2]}
27... Rd2 {[%clk 0:14:39.5]} 28. a6 {[%clk 0:14:54.9]} 28... b4 {[%clk
0:14:43.4]} 29. a7 {[%clk 0:14:56.2]} 29... bxc3 {[%clk 0:14:46]} 30. a8=Q+
{[%clk 0:14:59]} 30... Kd7 {[%clk 0:14:49.9]} 31. Qc6+ {[%clk 0:15:03.5]} 31...
Kc8 {[%clk 0:14:50.2]} 32. Re1 {[%clk 0:15:05.2]} 32... Be2 {[%clk 0:14:42.3]}
33. d6 {[%clk 0:14:58.3]} 33... Kd8 {[%clk 0:14:35.6]} 34. Qxc7+ {[%clk
0:15:01.8]} 34... Ke8 {[%clk 0:14:39.4]} 35. Qe7# {[%clk 0:15:06.7]} 1-0

[Event "Live Chess"]
[Site "Chess.com"]
[Date "2023.09.16"]
[Round "-"]
[White "Edson_Zarnelli"]
[Black "kslusk"]
[Result "1-0"]
[WhiteElo "785"]
[BlackElo "819"]
[TimeControl "900+5"]
[EndTime "7:24:44 PDT"]
[Termination "Edson_Zarnelli venceu por desistência"]

1. e4 {[%clk 0:15:02.9]} 1... e6 {[%clk 0:15:03.9]} 2. Nf3 {[%clk 0:15:06.8]}
2... d5 {[%clk 0:15:08.4]} 3. Nc3 {[%clk 0:15:08]} 3... dxe4 {[%clk 0:15:11]} 4.
Nxe4 {[%clk 0:15:11.9]} 4... Nf6 {[%clk 0:15:13]} 5. d3 {[%clk 0:15:13.8]} 5...
Nxe4 {[%clk 0:15:16.4]} 6. dxe4 {[%clk 0:15:15.9]} 6... Qxd1+ {[%clk 0:15:21]}
7. Kxd1 {[%clk 0:15:19.2]} 7... Bd6 {[%clk 0:15:22.9]} 8. Be3 {[%clk 0:15:15.7]}
8... Nc6 {[%clk 0:15:26.2]} 9. Bd4 {[%clk 0:15:12.6]} 9... f6 {[%clk 0:15:28.6]}
10. Bc4 {[%clk 0:15:09.4]} 10... e5 {[%clk 0:15:21.9]} 11. Bc3 {[%clk 0:15:09]}
11... Bg4 {[%clk 0:15:24.6]} 12. h3 {[%clk 0:15:10.7]} 12... Bxf3+ {[%clk
0:15:27.6]} 13. gxf3 {[%clk 0:15:14.5]} 13... O-O-O {[%clk 0:15:20.8]} 14. Rg1
{[%clk 0:15:17.3]} 14... Bb4+ {[%clk 0:15:13.2]} 15. Ke2 {[%clk 0:15:17]} 15...
Bxc3 {[%clk 0:15:14.5]} 16. bxc3 {[%clk 0:15:19.9]} 16... g6 {[%clk 0:15:13.3]}
17. Bd5 {[%clk 0:15:17.5]} 17... Ne7 {[%clk 0:15:08.9]} 18. Rgd1 {[%clk
0:15:13.6]} 18... Nxd5 {[%clk 0:15:12]} 19. exd5 {[%clk 0:15:17]} 19... Rd7
{[%clk 0:15:12.6]} 20. a4 {[%clk 0:15:12.8]} 20... Rhd8 {[%clk 0:15:15.7]} 21.
c4 {[%clk 0:15:13.8]} 21... f5 {[%clk 0:15:04]} 22. h4 {[%clk 0:15:05.6]} 22...
h6 {[%clk 0:15:02.7]} 23. Rg1 {[%clk 0:15:03.2]} 23... Rg8 {[%clk 0:15:04.1]}
24. h5 {[%clk 0:15:04.7]} 24... g5 {[%clk 0:15:06.4]} 25. Rad1 {[%clk
0:14:52.1]} 25... c6 {[%clk 0:14:40.3]} 26. dxc6 {[%clk 0:14:50.5]} 26... Rxd1
{[%clk 0:14:41.9]} 27. Rxd1 {[%clk 0:14:54]} 27... bxc6 {[%clk 0:14:43.1]} 28.
Rd6 {[%clk 0:14:57.5]} 28... g4 {[%clk 0:14:01.9]} 29. Rxc6+ {[%clk 0:14:57.2]}
29... Kd7 {[%clk 0:14:04.3]} 30. Rxh6 {[%clk 0:15:00.3]} 30... Rg5 {[%clk
0:14:04.9]} 31. Rg6 {[%clk 0:14:59.1]} 31... Rxg6 {[%clk 0:13:24.7]} 32. hxg6
{[%clk 0:15:02.5]} 32... Ke7 {[%clk 0:13:29.1]} 33. fxg4 {[%clk 0:15:03.4]}
33... fxg4 {[%clk 0:13:32.1]} 34. f3 {[%clk 0:15:03.7]} 34... Ke6 {[%clk
0:13:32.9]} 35. fxg4 {[%clk 0:15:06.6]} 35... Kf6 {[%clk 0:13:37.1]} 36. Kf3
{[%clk 0:15:10.4]} 36... Kxg6 {[%clk 0:13:41.5]} 37. Kg3 {[%clk 0:15:14.2]}
37... Kg5 {[%clk 0:13:45.4]} 38. c5 {[%clk 0:15:18.1]} 38... e4 {[%clk
0:13:48.5]} 39. c6 {[%clk 0:15:22.3]} 1-0

[Event "Live Chess"]
[Site "Chess.com"]
[Date "2023.09.16"]
[Round "-"]
[White "gu1c0rrea"]
[Black "fernanndodod"]
[Result "0-1"]
[WhiteElo "811"]
[BlackElo "1954"]
[TimeControl "900+5"]
[EndTime "7:25:25 PDT"]
[Termination "fernanndodod venceu por desistência"]

1. e4 {[%clk 0:15:04.2]} 1... e5 {[%clk 0:15:02.2]} 2. Nf3 {[%clk 0:15:08.1]}
2... Nc6 {[%clk 0:15:06.4]} 3. Bb5 {[%clk 0:15:10.2]} 3... a6 {[%clk 0:15:09.8]}
4. Ba4 {[%clk 0:15:13.4]} 4... Nf6 {[%clk 0:15:13.5]} 5. Qe2 {[%clk 0:15:16.1]}
5... b5 {[%clk 0:15:14.2]} 6. Bb3 {[%clk 0:15:19.5]} 6... Bc5 {[%clk 0:15:17.1]}
7. O-O {[%clk 0:15:21.9]} 7... d6 {[%clk 0:15:20.4]} 8. d3 {[%clk 0:15:21.9]}
8... Bg4 {[%clk 0:15:23.2]} 9. h3 {[%clk 0:15:22.4]} 9... Bxf3 {[%clk
0:15:25.7]} 10. Qxf3 {[%clk 0:15:26.4]} 10... O-O {[%clk 0:15:30.4]} 11. Be3
{[%clk 0:15:18.1]} 11... Nd4 {[%clk 0:15:29.4]} 12. Bxd4 {[%clk 0:15:08.7]}
12... Bxd4 {[%clk 0:15:34.3]} 13. c3 {[%clk 0:15:08.2]} 13... Bb6 {[%clk
0:15:36.3]} 14. d4 {[%clk 0:15:11.1]} 14... exd4 {[%clk 0:15:37.8]} 15. cxd4
{[%clk 0:15:11.7]} 15... Bxd4 {[%clk 0:15:40.6]} 16. Nc3 {[%clk 0:15:08.5]}
16... Bxc3 {[%clk 0:15:43.7]} 17. bxc3 {[%clk 0:15:12.2]} 17... Re8 {[%clk
0:15:46.5]} 18. Bc2 {[%clk 0:15:15.9]} 18... Qd7 {[%clk 0:15:41.6]} 19. Qd3
{[%clk 0:15:19.4]} 19... Qc6 {[%clk 0:15:42.6]} 20. e5 {[%clk 0:15:19.4]} 20...
dxe5 {[%clk 0:15:44.6]} 21. Rfe1 {[%clk 0:15:11.3]} 21... e4 {[%clk 0:15:46.7]}
22. Qe3 {[%clk 0:15:05.4]} 22... Nd5 {[%clk 0:15:45.3]} 23. Qd4 {[%clk
0:14:59.6]} 23... Qxc3 {[%clk 0:15:38.6]} 24. Qxc3 {[%clk 0:14:56.9]} 24... Nxc3
{[%clk 0:15:41.3]} 25. Rac1 {[%clk 0:14:51.2]} 25... b4 {[%clk 0:15:43.1]} 26.
Bb3 {[%clk 0:14:50.5]} 26... c5 {[%clk 0:15:42.8]} 27. Re3 {[%clk 0:14:37.6]}
27... a5 {[%clk 0:15:43.6]} 28. Rce1 {[%clk 0:14:16.5]} 28... Rad8 {[%clk
0:15:45]} 29. Bc4 {[%clk 0:14:15.2]} 29... Rd4 {[%clk 0:15:45.8]} 30. Bb3 {[%clk
0:13:53.6]} 30... h6 {[%clk 0:15:47.2]} 31. f3 {[%clk 0:13:53.5]} 31... Nd5
{[%clk 0:15:29.2]} 32. Bxd5 {[%clk 0:13:54.7]} 32... Rxd5 {[%clk 0:15:34.1]} 33.
fxe4 {[%clk 0:13:55.7]} 33... Rd2 {[%clk 0:15:33.9]} 34. a3 {[%clk 0:13:49.9]}
34... c4 {[%clk 0:15:32.1]} 35. e5 {[%clk 0:13:49.3]} 35... Rd3 {[%clk
0:15:30.6]} 36. axb4 {[%clk 0:13:44.5]} 36... axb4 {[%clk 0:15:33.5]} 37. Re4
{[%clk 0:13:46.4]} 37... Rc3 {[%clk 0:15:24.1]} 38. Ra1 {[%clk 0:13:30.7]} 38...
b3 {[%clk 0:15:25.3]} 39. Rb1 {[%clk 0:13:19.6]} 39... Rc2 {[%clk 0:15:23]} 40.
Kh2 {[%clk 0:13:11.7]} 40... b2 {[%clk 0:15:21.5]} 41. Re3 {[%clk 0:13:09.5]}
41... c3 {[%clk 0:15:23.6]} 0-1

[Event "Live Chess"]
[Site "Chess.com"]
[Date "2023.09.16"]
[Round "-"]
[White "Abofado"]
[Black "Mozart5501"]
[Result "0-1"]
[WhiteElo "576"]
[BlackElo "1788"]
[TimeControl "900+5"]
[EndTime "7:25:39 PDT"]
[Termination "Mozart5501 venceu por desistência"]

1. e4 {[%clk 0:15:02.4]} 1... e5 {[%clk 0:15:04.5]} 2. Nf3 {[%clk 0:15:06]} 2...
Nc6 {[%clk 0:15:09]} 3. d4 {[%clk 0:15:09.2]} 3... exd4 {[%clk 0:15:12.9]} 4.
Nxd4 {[%clk 0:15:11.9]} 4... Bc5 {[%clk 0:15:16.5]} 5. Nb3 {[%clk 0:15:14.9]}
5... Bb6 {[%clk 0:15:19.2]} 6. Nc3 {[%clk 0:15:18.3]} 6... Nf6 {[%clk
0:15:21.6]} 7. e5 {[%clk 0:15:19.9]} 7... Nxe5 {[%clk 0:15:24.5]} 8. Qe2 {[%clk
0:15:24.2]} 8... Qe7 {[%clk 0:15:27.4]} 9. Bf4 {[%clk 0:15:26.7]} 9... d6 {[%clk
0:15:11.5]} 10. O-O-O {[%clk 0:15:23.8]} 10... Neg4 {[%clk 0:15:07.7]} 11. Qb5+
{[%clk 0:15:15.2]} 11... Bd7 {[%clk 0:15:09.8]} 12. Qg5 {[%clk 0:14:55]} 12...
O-O-O {[%clk 0:14:54.2]} 13. Qg6 {[%clk 0:14:53.8]} 0-1

[Event "Live Chess"]
[Site "Chess.com"]
[Date "2023.09.16"]
[Round "-"]
[White "vitinho_lawliet"]
[Black "kslusk"]
[Result "0-1"]
[WhiteElo "924"]
[BlackElo "847"]
[TimeControl "900+5"]
[EndTime "7:26:42 PDT"]
[Termination "kslusk venceu por desistência"]

1. e4 {[%clk 0:14:58]} 1... e6 {[%clk 0:15:03.9]} 2. Nf3 {[%clk 0:15:01.6]} 2...
d5 {[%clk 0:15:08.2]} 3. e5 {[%clk 0:15:04.9]} 3... c5 {[%clk 0:15:11.5]} 4. d4
{[%clk 0:15:07.9]} 4... cxd4 {[%clk 0:15:15]} 5. Qxd4 {[%clk 0:15:12.3]} 5...
Nc6 {[%clk 0:15:18.2]} 6. Qa4 {[%clk 0:15:12.5]} 6... Bd7 {[%clk 0:15:21]} 7.
Bd2 {[%clk 0:15:11]} 7... Nce7 {[%clk 0:15:01.9]} 8. Bb5 {[%clk 0:15:03.8]} 8...
Bxb5 {[%clk 0:15:04.5]} 9. Qxb5+ {[%clk 0:15:05.8]} 9... Qd7 {[%clk 0:15:09.1]}
10. Qb4 {[%clk 0:15:01.9]} 10... Nf5 {[%clk 0:15:09]} 11. Nc3 {[%clk 0:15:01.4]}
11... Bxb4 {[%clk 0:15:10.9]} 0-1

[Event "Live Chess"]
[Site "Chess.com"]
[Date "2023.09.16"]
[Round "-"]
[White "fernanndodod"]
[Black "Mozart5501"]
[Result "1-0"]
[WhiteElo "1958"]
[BlackElo "1784"]
[TimeControl "900+5"]
[EndTime "7:26:46 PDT"]
[Termination "fernanndodod venceu por desistência"]

1. e4 {[%clk 0:15:00.6]} 1... e5 {[%clk 0:15:04.4]} 2. Nf3 {[%clk 0:15:02.6]}
2... Nc6 {[%clk 0:15:08.9]} 3. Bb5 {[%clk 0:15:04.2]} 3... a6 {[%clk 0:15:12.1]}
4. Ba4 {[%clk 0:15:07.8]} 4... Nf6 {[%clk 0:15:15.4]} 5. O-O {[%clk 0:15:11.4]}
5... Be7 {[%clk 0:15:19.3]} 6. Re1 {[%clk 0:15:13.6]} 6... b5 {[%clk 0:15:23]}
7. Bb3 {[%clk 0:15:17.4]} 7... O-O {[%clk 0:15:27.6]} 8. a4 {[%clk 0:15:21.2]}
8... Bb7 {[%clk 0:15:31.4]} 9. d3 {[%clk 0:15:24.3]} 9... Na5 {[%clk 0:15:28.2]}
10. c3 {[%clk 0:15:25.4]} 10... Nxb3 {[%clk 0:15:31.9]} 11. Qxb3 {[%clk
0:15:30.3]} 11... bxa4 {[%clk 0:15:25.2]} 12. Qxb7 {[%clk 0:15:33.4]} 1-0

[Event "Live Chess"]
[Site "Chess.com"]
[Date "2023.09.16"]
[Round "-"]
[White "zxsimon"]
[Black "Mika635Isa"]
[Result "1-0"]
[WhiteElo "1480"]
[BlackElo "532"]
[TimeControl "900+5"]
[EndTime "7:26:58 PDT"]
[Termination "zxsimon venceu por desistência"]

1. e4 {[%clk 0:15:03]} 1... e5 {[%clk 0:15:03]} 2. Nf3 {[%clk 0:15:06.4]} 2...
Nf6 {[%clk 0:15:04]} 3. Nxe5 {[%clk 0:15:09.5]} 3... Nxe4 {[%clk 0:15:08]} 4.
Qe2 {[%clk 0:15:12.8]} 4... d6 {[%clk 0:15:11.1]} 5. Qxe4 {[%clk 0:15:00.2]}
5... Qe7 {[%clk 0:14:57.7]} 6. d4 {[%clk 0:15:00.4]} 6... dxe5 {[%clk
0:14:49.5]} 7. Qxe5 {[%clk 0:15:02.5]} 7... f6 {[%clk 0:14:50.5]} 8. Qxe7+
{[%clk 0:15:05.2]} 8... Bxe7 {[%clk 0:14:54]} 9. Bf4 {[%clk 0:15:08]} 9... c6
{[%clk 0:14:48.7]} 10. Bc4 {[%clk 0:15:08.8]} 10... b5 {[%clk 0:14:38.3]} 11.
Bd3 {[%clk 0:15:09]} 11... O-O {[%clk 0:14:40.1]} 12. O-O {[%clk 0:15:11.9]}
12... Nd7 {[%clk 0:14:12.6]} 13. Nd2 {[%clk 0:15:13.5]} 13... Nb6 {[%clk
0:14:06.3]} 14. b3 {[%clk 0:15:11]} 14... Nd5 {[%clk 0:13:58]} 15. Bg3 {[%clk
0:15:14]} 15... Nc3 {[%clk 0:13:33.1]} 16. Ne4 {[%clk 0:15:11.5]} 16... b4
{[%clk 0:13:28.6]} 17. Nxc3 {[%clk 0:15:13.9]} 17... bxc3 {[%clk 0:13:32.3]} 18.
Bc4+ {[%clk 0:15:12.3]} 18... Kh8 {[%clk 0:13:22.3]} 19. d5 {[%clk 0:15:16.5]}
19... cxd5 {[%clk 0:13:22.1]} 20. Bxd5 {[%clk 0:15:19.9]} 20... Rd8 {[%clk
0:13:21]} 21. Bxa8 {[%clk 0:15:22.4]} 21... Ba6 {[%clk 0:13:17.8]} 22. Rfe1
{[%clk 0:15:23.7]} 22... Rxa8 {[%clk 0:13:01.8]} 23. Rxe7 {[%clk 0:15:26.5]}
23... Bb5 {[%clk 0:13:01.6]} 24. Rd1 {[%clk 0:15:27.8]} 24... Re8 {[%clk
0:12:54.9]} 25. Rxe8+ {[%clk 0:15:29.4]} 25... Bxe8 {[%clk 0:12:53.1]} 26. Rd8
{[%clk 0:15:32.2]} 26... Kg8 {[%clk 0:12:39.7]} 27. Rxe8+ {[%clk 0:15:33.5]}
27... Kf7 {[%clk 0:12:43.7]} 28. Rc8 {[%clk 0:15:37]} 28... Ke6 {[%clk
0:12:47.3]} 29. Rxc3 {[%clk 0:15:40.4]} 29... Kd5 {[%clk 0:12:51]} 30. b4 {[%clk
0:15:42]} 30... g5 {[%clk 0:12:52.9]} 31. b5 {[%clk 0:15:45.6]} 31... h5 {[%clk
0:12:48.4]} 32. a4 {[%clk 0:15:48.6]} 32... Ke4 {[%clk 0:12:48.8]} 33. a5 {[%clk
0:15:51.6]} 33... f5 {[%clk 0:12:48.7]} 34. b6 {[%clk 0:15:54.2]} 34... Kd4
{[%clk 0:12:50.2]} 35. Rc8 {[%clk 0:15:55.3]} 35... f4 {[%clk 0:12:49.6]} 36.
Bxf4 {[%clk 0:15:56.8]} 36... gxf4 {[%clk 0:12:53.2]} 37. b7 {[%clk 0:16:00.3]}
37... Ke4 {[%clk 0:12:52.8]} 38. b8=Q {[%clk 0:16:02.5]} 38... f3 {[%clk
0:12:51.9]} 39. Rc4+ {[%clk 0:16:04.6]} 39... Kd5 {[%clk 0:12:52.3]} 40. Qb5+
{[%clk 0:16:07.7]} 40... Kd6 {[%clk 0:12:55.6]} 41. Rc6+ {[%clk 0:16:11.5]} 1-0

[Event "Live Chess"]
[Site "Chess.com"]
[Date "2023.09.16"]
[Round "-"]
[White "AlphaKaua10"]
[Black "Giulliajapa007"]
[Result "1-0"]
[WhiteElo "1074"]
[BlackElo "1006"]
[TimeControl "900+5"]
[EndTime "7:27:01 PDT"]
[Termination "AlphaKaua10 venceu por xeque-mate"]

1. d4 {[%clk 0:15:02.1]} 1... d5 {[%clk 0:15:01.1]} 2. c4 {[%clk 0:15:05.9]}
2... e6 {[%clk 0:15:03.8]} 3. cxd5 {[%clk 0:15:09.1]} 3... exd5 {[%clk
0:15:07.4]} 4. Nf3 {[%clk 0:15:13.6]} 4... Nc6 {[%clk 0:15:11]} 5. e3 {[%clk
0:15:16.9]} 5... Nf6 {[%clk 0:15:14.7]} 6. g3 {[%clk 0:15:20.3]} 6... a6 {[%clk
0:15:12.2]} 7. Bg2 {[%clk 0:15:24.1]} 7... Bg4 {[%clk 0:15:14.7]} 8. O-O {[%clk
0:15:27.5]} 8... Qd7 {[%clk 0:15:17.6]} 9. Nc3 {[%clk 0:15:27.3]} 9... Bh3
{[%clk 0:15:19.4]} 10. Ne5 {[%clk 0:15:24.8]} 10... Qe6 {[%clk 0:15:14.2]} 11.
Nxc6 {[%clk 0:15:22.4]} 11... bxc6 {[%clk 0:15:17]} 12. f4 {[%clk 0:15:24.3]}
12... Bxg2 {[%clk 0:15:18.9]} 13. Kxg2 {[%clk 0:15:28.3]} 13... Qf5 {[%clk
0:15:12.8]} 14. b4 {[%clk 0:15:18.7]} 14... Ng4 {[%clk 0:15:13.4]} 15. h3 {[%clk
0:15:15.5]} 15... Nf6 {[%clk 0:14:59.7]} 16. Qa4 {[%clk 0:15:17.5]} 16... Qe6
{[%clk 0:14:41.7]} 17. f5 {[%clk 0:15:18.2]} 17... Qd6 {[%clk 0:14:36.5]} 18. b5
{[%clk 0:15:08.8]} 18... cxb5 {[%clk 0:14:38.9]} 19. Nxb5 {[%clk 0:15:12.9]}
19... Qc6 {[%clk 0:14:25.1]} 20. Nxc7+ {[%clk 0:15:11.3]} 20... Kd7 {[%clk
0:14:25.4]} 21. Qxc6+ {[%clk 0:15:14.9]} 21... Kxc6 {[%clk 0:14:27.9]} 22. Nxa8
{[%clk 0:15:19.2]} 22... Ne4 {[%clk 0:14:29.4]} 23. Rb1 {[%clk 0:15:13.8]} 23...
Bd6 {[%clk 0:14:30]} 24. Rb6+ {[%clk 0:15:17.2]} 24... Kd7 {[%clk 0:14:32.5]}
25. g4 {[%clk 0:15:08.1]} 25... Rxa8 {[%clk 0:14:33.5]} 26. g5 {[%clk
0:15:09.5]} 26... Nxg5 {[%clk 0:14:34.4]} 27. Kf2 {[%clk 0:15:07]} 27... Nxh3+
{[%clk 0:14:35.5]} 28. Ke2 {[%clk 0:15:10.6]} 28... Ng5 {[%clk 0:14:21.7]} 29.
f6 {[%clk 0:15:13.3]} 29... g6 {[%clk 0:14:18.7]} 30. Rb7+ {[%clk 0:15:14.3]}
30... Ke8 {[%clk 0:14:17.3]} 31. e4 {[%clk 0:15:17.5]} 31... dxe4 {[%clk
0:14:19.4]} 32. Bxg5 {[%clk 0:15:20.8]} 32... Rd8 {[%clk 0:14:15.8]} 33. Rfb1
{[%clk 0:15:17.3]} 33... Bc7 {[%clk 0:14:03.8]} 34. Rxc7 {[%clk 0:15:18.5]}
34... Rxd4 {[%clk 0:14:06.6]} 35. Rb8+ {[%clk 0:15:22.3]} 35... Rd8 {[%clk
0:14:08.4]} 36. Rxd8+ {[%clk 0:15:26.6]} 36... Kxd8 {[%clk 0:14:12.5]} 37. Rxf7
{[%clk 0:15:30.7]} 37... Ke8 {[%clk 0:14:16.1]} 38. Rxh7 {[%clk 0:15:34.8]}
38... Kf8 {[%clk 0:14:16.5]} 39. f7 {[%clk 0:15:37.9]} 39... a5 {[%clk
0:14:18.3]} 40. Be3 {[%clk 0:15:39]} 40... g5 {[%clk 0:14:20.4]} 41. Bc5# {[%clk
0:15:42.7]} 1-0

[Event "Live Chess"]
[Site "Chess.com"]
[Date "2023.09.16"]
[Round "-"]
[White "ArthurMPRJ"]
[Black "mary260210"]
[Result "1-0"]
[WhiteElo "1388"]
[BlackElo "887"]
[TimeControl "900+5"]
[EndTime "7:27:39 PDT"]
[Termination "ArthurMPRJ venceu por desistência"]

1. d4 {[%clk 0:15:03.7]} 1... d5 {[%clk 0:15:02.2]} 2. c4 {[%clk 0:15:08]} 2...
dxc4 {[%clk 0:15:06]} 3. e3 {[%clk 0:15:11.2]} 3... Nc6 {[%clk 0:15:09.7]} 4.
Bxc4 {[%clk 0:15:15.2]} 4... Nf6 {[%clk 0:15:12.5]} 5. Nc3 {[%clk 0:15:18.8]}
5... e5 {[%clk 0:15:10.5]} 6. d5 {[%clk 0:15:18.5]} 6... Nb4 {[%clk 0:15:05]} 7.
a3 {[%clk 0:15:19.7]} 7... Na6 {[%clk 0:15:04.9]} 8. Bxa6 {[%clk 0:15:10.4]}
8... bxa6 {[%clk 0:15:05.1]} 9. e4 {[%clk 0:15:11]} 9... Bg4 {[%clk 0:15:02.9]}
10. f3 {[%clk 0:15:14.5]} 10... Bd7 {[%clk 0:15:03.3]} 11. Nge2 {[%clk
0:15:18.1]} 11... Bc5 {[%clk 0:15:06.6]} 12. Qd3 {[%clk 0:15:19.9]} 12... O-O
{[%clk 0:15:06.2]} 13. Be3 {[%clk 0:15:23.4]} 13... Bxe3 {[%clk 0:15:08.9]} 14.
Qxe3 {[%clk 0:15:27.5]} 14... c6 {[%clk 0:15:11.1]} 15. O-O {[%clk 0:15:16.1]}
15... cxd5 {[%clk 0:15:14.8]} 16. exd5 {[%clk 0:15:19]} 16... Bc8 {[%clk
0:15:13.7]} 17. Qxe5 {[%clk 0:15:10]} 17... Re8 {[%clk 0:15:06.2]} 18. Qd4
{[%clk 0:15:13.4]} 18... Rb8 {[%clk 0:14:57.9]} 19. b4 {[%clk 0:15:08.9]} 19...
Ra8 {[%clk 0:14:26.6]} 20. Rfd1 {[%clk 0:14:41.1]} 20... Bb7 {[%clk 0:14:29.8]}
21. d6 {[%clk 0:14:35.3]} 21... Qd7 {[%clk 0:14:17.8]} 22. Rac1 {[%clk
0:14:20.2]} 22... Red8 {[%clk 0:14:21.1]} 23. Ng3 {[%clk 0:14:17.2]} 23... Qxd6
{[%clk 0:14:23.4]} 24. Qxd6 {[%clk 0:14:19.3]} 24... Rxd6 {[%clk 0:14:24.7]} 25.
Rxd6 {[%clk 0:14:24.2]} 25... Ne8 {[%clk 0:14:24.4]} 26. Rd3 {[%clk 0:14:09.2]}
26... Bc6 {[%clk 0:14:17.2]} 27. Nce4 {[%clk 0:14:03.3]} 27... Bb5 {[%clk
0:14:17.6]} 28. Rdc3 {[%clk 0:13:58.6]} 28... Rd8 {[%clk 0:14:12.3]} 29. Rc8
{[%clk 0:13:57.1]} 29... Rxc8 {[%clk 0:14:14.3]} 30. Rxc8 {[%clk 0:14:02]} 30...
Bd7 {[%clk 0:14:15.8]} 31. Ra8 {[%clk 0:14:01.9]} 31... f5 {[%clk 0:14:17.6]}
32. Nd6 {[%clk 0:14:04.1]} 32... Kf8 {[%clk 0:14:17]} 33. Nxe8 {[%clk
0:14:06.2]} 33... Bxe8 {[%clk 0:14:20.8]} 34. Nxf5 {[%clk 0:14:09.2]} 34... Kf7
{[%clk 0:14:23.3]} 35. Nd6+ {[%clk 0:14:13.2]} 35... Ke7 {[%clk 0:14:26.5]} 36.
Nxe8 {[%clk 0:14:18.1]} 36... Ke6 {[%clk 0:14:29.8]} 37. Nxg7+ {[%clk
0:14:22.1]} 1-0

[Event "Live Chess"]
[Site "Chess.com"]
[Date "2023.09.16"]
[Round "-"]
[White "KiwiDoFbi"]
[Black "Gustavinh13"]
[Result "1-0"]
[WhiteElo "1315"]
[BlackElo "1919"]
[TimeControl "900+5"]
[EndTime "7:27:41 PDT"]
[Termination "KiwiDoFbi venceu por desistência"]

1. e4 {[%clk 0:15:03.8]} 1... c6 {[%clk 0:15:03.8]} 2. d4 {[%clk 0:15:06.4]}
2... d5 {[%clk 0:15:06.8]} 3. e5 {[%clk 0:15:11]} 3... Bf5 {[%clk 0:15:10.5]} 4.
h4 {[%clk 0:15:14.9]} 4... h6 {[%clk 0:15:12.9]} 5. g4 {[%clk 0:15:13.1]} 5...
Be4 {[%clk 0:15:09.4]} 6. f3 {[%clk 0:15:14.8]} 6... Bg6 {[%clk 0:15:06.2]} 7.
h5 {[%clk 0:15:16.4]} 7... Bh7 {[%clk 0:15:09.9]} 8. Bd3 {[%clk 0:15:16.8]} 8...
Bxd3 {[%clk 0:15:12.2]} 9. Qxd3 {[%clk 0:15:21.3]} 9... e6 {[%clk 0:15:16.1]}
10. Ne2 {[%clk 0:15:24.5]} 10... Qb6 {[%clk 0:15:17.5]} 11. Nbc3 {[%clk
0:15:18.3]} 11... c5 {[%clk 0:15:16.7]} 12. Be3 {[%clk 0:15:06.7]} 12... c4
{[%clk 0:15:03.3]} 13. Qd2 {[%clk 0:14:47.9]} 13... Bb4 {[%clk 0:14:46.2]} 14.
O-O-O {[%clk 0:14:44]} 14... a5 {[%clk 0:14:26.1]} 15. a3 {[%clk 0:14:45.6]}
15... Be7 {[%clk 0:14:23.8]} 16. Na4 {[%clk 0:14:35.6]} 16... Qb3 {[%clk
0:14:28.5]} 17. cxb3 {[%clk 0:14:38.4]} 17... cxb3 {[%clk 0:13:30.5]} 18. Nc5
{[%clk 0:14:36]} 18... b5 {[%clk 0:13:15.5]} 19. Nc3 {[%clk 0:14:37.3]} 19... b4
{[%clk 0:13:18.4]} 20. Nb5 {[%clk 0:14:40.3]} 20... Kf8 {[%clk 0:13:11.2]} 21.
axb4 {[%clk 0:14:26.7]} 21... axb4 {[%clk 0:13:16.1]} 22. Qxb4 {[%clk
0:14:30.4]} 22... Ra1+ {[%clk 0:13:12.1]} 23. Kd2 {[%clk 0:14:32.4]} 1-0